[Event "Charlotte Spring IM-B 2024"]
[Site "Charlotte"]
[Date "2024.03.31"]
[Round "9.1"]
[White "Chirilov, James A"]
[Black "Diaz Charpentier, Kristel Meliss"]
[Result "1/2-1/2"]
[ECO "B35"]
[WhiteElo "2082"]
[BlackElo "1990"]
[Annotator "RC"]
[PlyCount "90"]
[EventDate "2024.03.27"]
[EventType "tourn"]
[EventCountry "USA"]
[SourceTitle "playchess.com"]
[Source "ChessBase"]
[SourceQuality "1"]
[TimeControl "5400+30"]

1. e4 {[%emt 0:00:46]} c5 {[%emt 0:01:13]} 2. Nf3 {[%emt 0:00:35]} Nc6 {[%emt 0:00:05]} 3. d4 {[%emt 0:00:08]} cxd4 {[%emt 0:00:05]} 4. Nxd4 {[%emt 0:00:04]} g6 {[%emt 0:00:08]} 5. Nc3 {[%emt 0:00:37]} Bg7 {[%emt 0:00:18]} 6. Be3 {[%emt 0:00:15]} Nf6 {[%emt 0:00:21]} 7. Bc4 {[%emt 0:01:00]} O-O {[%emt 0:00:10]} 8. f3 {[%emt 0:03:54]} Qb6 {[%emt 0:01:38]} 9. Bb3 {[%emt 0:31:00]} Nxe4 {[%emt 0:00:15]} 10. Nd5 {[%emt 0:01:20]} Qa5+ {[%emt 0:00:28]} 11. c3 {[%emt 0:00:15]} Nc5 {[%emt 0:00:31]} 12. Nxc6 {[%emt 0:00:50]} dxc6 {[%emt 0:00:10]} 13. Nxe7+ {[%emt 0:00:07]} Kh8 {[%emt 0:00:08]} 14. Nxc8 {[%emt 0:00:59]} Raxc8 {[%emt 0:00:13]} 15. O-O {[%emt 0:00:24]} Rcd8 {[%emt 0:06:38]} 16. Qc2 {[%emt 0:02:11]} Rfe8 {[%emt 0:08:33]} 17. Bf2 {[%emt 0:02:08]} Kg8 {[%emt 0:13:55]} 18. Rfe1 {[%emt 0:06:43]} a6 {[%emt 0:13:50]} 19. Bc4 {[%emt 0:02:29]} Qa4 {[%emt 0:10:03]} 20. b3 {[%emt 0:00:57]} Qa3 {[%emt 0:00:07]} 21. Rad1 {[%emt 0:01:04]} b5 {[%emt 0:01:30]} 22. Bf1 {[%emt 0:07:36]} Ne6 {[%emt 0:01:34]} 23. g3 {[%emt 0:03:20]} Qe7 {[%emt 0:04:29]} 24. f4 {[%emt 0:01:20]} Qf6 {[%emt 0:00:18]} 25. Re5 {[%emt 0:02:59]} Rxd1 {[%emt 0:03:56]} 26. Qxd1 {[%emt 0:00:03]} Rd8 {[%emt 0:00:18]} 27. Qe2 {[%emt 0:00:48]} g5 {[%emt 0:00:25]} 28. Re4 {[%emt 0:21:26]} gxf4 {[%emt 0:00:50]} 29. gxf4 {[%emt 0:01:54]} Qg6+ {[%emt 0:00:46]} 30. Bg3 {[%emt 0:02:32]} Bxc3 {[%emt 0:00:54]} 31. Bh3 {[%emt 0:06:16]} Rd1+ {[%emt 0:15:34]} 32. Qxd1 {[%emt 0:00:00]} Qxe4 {[%emt 0:00:07]} 33. Bg2 {[%emt 0:00:00]} Qd4+ {[%emt 0:02:36]} 34. Qxd4 {[%emt 0:00:00]} Nxd4 {[%emt 0:00:02]} 35. Kf1 {[%emt 0:00:00]} Kg7 {[%emt 0:03:12]} 36. Be4 {[%emt 0:00:00]} f5 {[%emt 0:02:58]} 37. Bd3 {[%emt 0:00:00]} Kf6 {[%emt 0:00:30]} 38. Kg2 {[%emt 0:00:00]} Ke6 {[%emt 0:01:17]} 39. Bf2 {[%emt 0:00:06]} c5 {[%emt 0:01:41]} 40. Bxd4 {[%emt 0:00:51]} Bxd4 {[%emt 0:00:26]} 41. Kf3 {[%emt 0:00:22]} Bg1 {[%emt 0:01:36]} 42. h3 {[%emt 0:00:10]} Bd4 {[%emt 0:00:19]} 43. Ke2 {[%emt 0:00:23]} Bf6 {[%emt 0:00:16]} 44. Ke3 {[%emt 0:00:17]} h6 {[%emt 0:03:59]} 45. Ke2 {[%emt 0:00:27]} Bd4 {[%emt 0:01:04]} 1/2-1/2

[Event "Charlotte Spring IM-B 2024"]
[Site "Charlotte"]
[Date "2024.03.31"]
[Round "9.2"]
[White "Nandhakumar, Vaseegaran"]
[Black "Jiang, Andrew"]
[Result "0-1"]
[ECO "C36"]
[WhiteElo "2251"]
[BlackElo "2181"]
[Annotator "RC"]
[PlyCount "56"]
[EventDate "2024.03.27"]
[EventType "tourn"]
[EventCountry "USA"]
[SourceTitle "playchess.com"]
[Source "ChessBase"]
[SourceQuality "1"]
[TimeControl "5400+30"]

1. e4 {[%emt 0:00:01]} e5 {[%emt 0:00:14]} 2. f4 {[%emt 0:00:07]} d5 {[%emt 0:01:18]} 3. exd5 {[%emt 0:00:51]} exf4 {[%emt 0:00:12]} 4. Nf3 {[%emt 0:00:05]} Nf6 {[%emt 0:00:13]} 5. Bb5+ {[%emt 0:00:06]} Bd7 {[%emt 0:06:35]} 6. Bxd7+ {[%emt 0:00:01]} Qxd7 {[%emt 0:00:16]} 7. O-O {[%emt 0:00:05]} Be7 {[%emt 0:05:26]} 8. c4 {[%emt 1:33:14]} c6 {[%emt 0:17:45]} 9. dxc6 {[%emt 0:00:00]} Nxc6 {[%emt 0:00:02]} 10. d4 {[%emt 0:00:00]} Nxd4 {[%emt 0:01:29]} 11. Nxd4 {[%emt 0:00:00]} O-O-O {[%emt 0:00:30]} 12. Rxf4 {[%emt 0:00:00]} Bc5 {[%emt 0:00:06]} 13. Be3 {[%emt 0:00:00]} Rhe8 {[%emt 0:00:27]} 14. b4 {[%emt 0:00:00]} Rxe3 {[%emt 0:04:10]} 15. bxc5 {[%emt 0:00:00]} Ne4 {[%emt 0:00:09]} 16. Na3 {[%emt 0:00:00]} g5 {[%emt 0:02:30]} 17. Rf5 {[%emt 0:00:00]} Qxf5 {[%emt 0:10:21]} 18. Nxf5 {[%emt 0:00:00]} Rxd1+ {[%emt 0:00:15]} 19. Rxd1 {[%emt 0:00:00]} Rxa3 {[%emt 0:00:11]} 20. Re1 {[%emt 0:00:00]} Nxc5 {[%emt 0:48:21]} 21. Nd6+ {[%emt 0:06:30]} Kd7 {[%emt 0:00:00]} 22. Nxf7 {[%emt 0:00:00]} Rxa2 {[%emt 0:00:00]} 23. Nxg5 {[%emt 0:00:00]} h6 {[%emt 0:00:00]} 24. Nf7 {[%emt 0:00:00]} h5 {[%emt 0:00:00]} 25. h4 {[%emt 0:00:00]} a5 {[%emt 0:00:00]} 26. Re5 {[%emt 0:00:00]} Ne6 {[%emt 0:00:00]} 27. g3 {[%emt 0:00:00]} Nd4 {[%emt 0:00:00]} 28. Rxh5 {[%emt 0:00:00]} Ne2+ {[%emt 0:04:00]} 0-1

[Event "Charlotte Spring IM-B 2024"]
[Site "Charlotte"]
[Date "2024.03.31"]
[Round "9.3"]
[White "Becerra Rivero, Julio"]
[Black "Tang, Benjamin"]
[Result "1-0"]
[ECO "C13"]
[WhiteElo "2411"]
[BlackElo "2324"]
[Annotator "RC"]
[PlyCount "129"]
[EventDate "2024.03.27"]
[EventType "tourn"]
[EventCountry "USA"]
[SourceTitle "playchess.com"]
[Source "ChessBase"]
[SourceQuality "1"]
[TimeControl "5400+30"]

1. e4 {[%emt 0:00:04]} e6 {[%emt 0:04:06]} 2. d4 {[%emt 0:00:05]} d5 {[%emt 0:00:04]} 3. Nc3 {[%emt 0:00:05]} Nf6 {[%emt 0:00:19]} 4. Bg5 {[%emt 0:00:06]} dxe4 {[%emt 0:00:03]} 5. Nxe4 {[%emt 0:00:07]} Be7 {[%emt 0:00:02]} 6. Bxf6 {[%emt 0:00:09]} gxf6 {[%emt 0:00:03]} 7. Nf3 {[%emt 0:00:09]} f5 {[%emt 0:00:06]} 8. Nc3 {[%emt 0:00:19]} a6 {[%emt 0:00:04]} 9. g3 {[%emt 0:01:48]} b5 {[%emt 0:00:04]} 10. Bg2 {[%emt 0:00:04]} Bb7 {[%emt 0:00:02]} 11. O-O {[%emt 0:00:41]} O-O {[%emt 0:00:03]} 12. Qe2 {[%emt 0:08:49]} c5 {[%emt 0:04:15]} 13. Rad1 {[%emt 0:01:04]} Qc7 {[%emt 0:02:58]} 14. Qe3 {[%emt 0:10:13]} cxd4 {[%emt 0:06:56]} 15. Nxd4 {[%emt 0:08:50]} Bxg2 {[%emt 0:00:46]} 16. Kxg2 {[%emt 0:00:08]} Bf6 {[%emt 0:16:21]} 17. Kg1 {[%emt 0:14:56]} b4 {[%emt 0:05:52]} 18. Nce2 {[%emt 0:06:49]} Nc6 {[%emt 0:02:48]} 19. Nf3 {[%emt 0:05:42]} Ne5 {[%emt 0:06:19]} 20. c3 {[%emt 0:03:55]} bxc3 {[%emt 0:06:39]} 21. bxc3 {[%emt 0:00:03]} Nxf3+ {[%emt 0:02:42]} 22. Qxf3 {[%emt 0:00:03]} Rfd8 {[%emt 0:00:43]} 23. Rd3 {[%emt 0:37:51]} Qc4 {[%emt 0:07:14]} 24. Rfd1 {[%emt 0:00:00]} Qe4 {[%emt 0:00:29]} 25. Qxe4 {[%emt 0:00:00]} fxe4 {[%emt 0:00:07]} 26. Rxd8+ {[%emt 0:01:30]} Bxd8 {[%emt 0:10:44]} 27. Rd4 {[%emt 0:00:00]} f5 {[%emt 0:02:23]} 28. Rd7 {[%emt 0:00:00]} Bf6 {[%emt 0:00:46]} 29. Nd4 {[%emt 0:00:00]} Bxd4 {[%emt 0:02:03]} 30. cxd4 {[%emt 0:00:00]} a5 {[%emt 0:01:11]} 31. d5 {[%emt 0:00:00]} Ra6 {[%emt 0:07:51]} 32. dxe6 {[%emt 0:00:00]} Rxe6 {[%emt 0:00:02]} 33. Rd5 {[%emt 0:00:00]} a4 {[%emt 0:00:05]} 34. Rxf5 {[%emt 0:00:00]} e3 {[%emt 0:00:05]} 35. fxe3 {[%emt 0:00:00]} Rxe3 {[%emt 0:00:02]} 36. Kg2 {[%emt 0:00:00]} Kg7 {[%emt 0:02:41]} 37. Rf3 {[%emt 0:00:00]} Re2+ {[%emt 0:01:12]} 38. Rf2 {[%emt 0:00:00]} Re3 {[%emt 0:00:59]} 39. Kh3 {[%emt 0:00:00]} a3 {[%emt 0:00:53]} 40. Kg4 {[%emt 0:00:00]} Re4+ {[%emt 0:01:46]} 41. Kf5 {[%emt 0:00:00]} Rb4 {[%emt 0:00:54]} 42. Rf3 {[%emt 0:00:00]} Rb2 {[%emt 0:00:04]} 43. Rxa3 {[%emt 0:00:00]} Rxh2 {[%emt 0:00:04]} 44. Ra7+ {[%emt 0:00:00]} Kf8 {[%emt 0:00:34]} 45. a4 {[%emt 0:00:30]} Ra2 {[%emt 0:02:46]} 46. a5 {[%emt 0:01:37]} h5 {[%emt 0:01:32]} 47. a6 {[%emt 0:00:30]} Ra3 {[%emt 0:01:04]} 48. Kf6 {[%emt 0:01:39]} Rf3+ {[%emt 0:00:15]} 49. Ke6 {[%emt 0:00:04]} Rxg3 {[%emt 0:01:49]} 50. Rf7+ {[%emt 0:00:16]} Kg8 {[%emt 0:02:48]} 51. a7 {[%emt 0:00:18]} Re3+ {[%emt 0:00:36]} 52. Kf6 {[%emt 0:02:01]} Rf3+ {[%emt 0:00:30]} 53. Kg6 {[%emt 0:00:13]} Rg3+ {[%emt 0:00:33]} 54. Kxh5 {[%emt 0:00:58]} Kxf7 {[%emt 0:02:13]} 55. a8=Q {[%emt 0:00:05]} Rg7 {[%emt 0:00:30]} 56. Qc6 {[%emt 0:00:13]} Rg8 {[%emt 0:00:00]} 57. Qd5+ {[%emt 0:00:38]} Kg7 {[%emt 0:00:00]} 58. Kg5 {[%emt 0:02:07]} Kh8+ {[%emt 0:00:02]} 59. Kf5 {[%emt 0:00:52]} Kh7 {[%emt 0:00:49]} 60. Qf7+ {[%emt 0:00:30]} Kh8 {[%emt 0:00:53]} 61. Qh5+ {[%emt 0:00:28]} Kg7 {[%emt 0:01:16]} 62. Qg6+ {[%emt 0:00:27]} Kf8 {[%emt 0:00:00]} 63. Qf6+ {[%emt 0:00:07]} Ke8 {[%emt 0:00:00]} 64. Ke6 {[%emt 0:00:32]} Rf8 {[%emt 0:00:00]} 65. Qe7# {[%emt 0:05:25]} 1-0

[Event "Charlotte Spring IM-B 2024"]
[Site "Charlotte"]
[Date "2024.03.31"]
[Round "9.4"]
[White "Narayanan, Samrug"]
[Black "Lima, Darcy"]
[Result "0-1"]
[ECO "B07"]
[WhiteElo "2343"]
[BlackElo "2364"]
[Annotator "RC"]
[PlyCount "102"]
[EventDate "2024.03.27"]
[EventType "tourn"]
[EventCountry "USA"]
[SourceTitle "playchess.com"]
[Source "ChessBase"]
[SourceQuality "1"]
[TimeControl "5400+30"]

1. e4 {[%emt 0:20:43]} d6 {[%emt 0:00:19]} 2. d4 {[%emt 0:00:08]} Nf6 {[%emt 0:00:23]} 3. Nc3 {[%emt 0:00:04]} g6 {[%emt 0:00:50]} 4. Be3 {[%emt 0:00:35]} a6 {[%emt 0:03:01]} 5. a4 {[%emt 0:01:01]} Nbd7 {[%emt 0:00:49]} 6. Nf3 {[%emt 0:01:26]} Bg7 {[%emt 0:00:56]} 7. h3 {[%emt 0:00:43]} O-O {[%emt 0:00:46]} 8. a5 {[%emt 0:02:51]} b5 {[%emt 0:05:01]} 9. axb6 {[%emt 0:01:18]} cxb6 {[%emt 0:00:05]} 10. Bd3 {[%emt 0:00:50]} Bb7 {[%emt 0:02:51]} 11. O-O {[%emt 0:00:30]} e6 {[%emt 0:01:11]} 12. Re1 {[%emt 0:00:58]} b5 {[%emt 0:01:52]} 13. Qd2 {[%emt 0:02:48]} b4 {[%emt 0:05:43]} 14. Ne2 {[%emt 0:00:24]} Bxe4 {[%emt 0:18:37]} 15. Bxe4 {[%emt 0:01:17]} Nxe4 {[%emt 0:00:05]} 16. Qxb4 {[%emt 0:00:08]} d5 {[%emt 0:02:01]} 17. Nd2 {[%emt 0:03:23]} a5 {[%emt 0:13:02]} 18. Qa3 {[%emt 0:00:20]} Nxd2 {[%emt 0:02:24]} 19. Bxd2 {[%emt 0:00:06]} Qc7 {[%emt 0:00:30]} 20. Qd3 {[%emt 0:01:25]} a4 {[%emt 0:01:36]} 21. b3 {[%emt 0:08:35]} axb3 {[%emt 0:11:22]} 22. cxb3 {[%emt 0:00:11]} Qb7 {[%emt 0:00:03]} 23. Rxa8 {[%emt 0:00:46]} Rxa8 {[%emt 0:00:04]} 24. b4 {[%emt 0:02:37]} Nb6 {[%emt 0:05:01]} 25. Rb1 {[%emt 0:04:39]} Nc4 {[%emt 0:00:17]} 26. Be1 {[%emt 0:02:11]} Qb5 {[%emt 0:04:06]} 27. Qd1 {[%emt 0:01:22]} Ra3 {[%emt 0:01:01]} 28. Nc1 {[%emt 0:02:10]} Nd6 {[%emt 0:01:47]} 29. Nb3 {[%emt 0:00:55]} Qc4 {[%emt 0:02:53]} 30. Bd2 {[%emt 0:01:04]} h5 {[%emt 0:01:28]} 31. Be3 {[%emt 0:02:47]} Qxb4 {[%emt 0:02:40]} 32. Nc5 {[%emt 0:00:09]} Qc3 {[%emt 0:00:28]} 33. g4 {[%emt 0:01:03]} hxg4 {[%emt 0:01:41]} 34. Qxg4 {[%emt 0:03:31]} Ra1 {[%emt 0:00:22]} 35. Rxa1 {[%emt 0:00:03]} Qxa1+ {[%emt 0:00:03]} 36. Kh2 {[%emt 0:00:11]} Nf5 {[%emt 0:00:11]} 37. Nxe6 {[%emt 0:00:26]} fxe6 {[%emt 0:00:14]} 38. Qxg6 {[%emt 0:00:05]} Qa6 {[%emt 0:01:20]} 39. Qe8+ {[%emt 0:00:06]} Kh7 {[%emt 0:00:13]} 40. Qh5+ {[%emt 0:00:04]} Kg8 {[%emt 0:00:30]} 41. Qe8+ {[%emt 0:00:03]} Bf8 {[%emt 0:00:48]} 42. h4 {[%emt 0:01:25]} Qd6+ {[%emt 0:00:31]} 43. Kh3 {[%emt 0:00:10]} Qe7 {[%emt 0:01:43]} 44. Qg6+ {[%emt 0:00:04]} Bg7 {[%emt 0:00:11]} 45. h5 {[%emt 0:00:02]} Qh4+ {[%emt 0:01:43]} 46. Kg2 {[%emt 0:00:03]} Nxe3+ {[%emt 0:03:17]} 47. fxe3 {[%emt 0:00:06]} Qe4+ {[%emt 0:00:02]} 48. Kf2 {[%emt 0:00:21]} Qxg6 {[%emt 0:00:08]} 49. hxg6 {[%emt 0:00:02]} Bh6 {[%emt 0:00:08]} 50. Kf3 {[%emt 0:00:08]} Kg7 {[%emt 0:00:10]} 51. e4 {[%emt 0:00:01]} Kxg6 {[%emt 0:00:14]} 0-1

[Event "Charlotte Spring IM-B 2024"]
[Site "Charlotte"]
[Date "2024.03.31"]
[Round "9.5"]
[White "Castillo Coca, Mairebis"]
[Black "Bregadze, Levan"]
[Result "0-1"]
[ECO "D05"]
[WhiteElo "2043"]
[BlackElo "2435"]
[Annotator "TA"]
[PlyCount "52"]
[EventDate "2024.03.27"]
[EventType "tourn"]
[EventCountry "USA"]
[SourceTitle "playchess.com"]
[Source "ChessBase"]
[SourceQuality "1"]
[TimeControl "5400+30"]

{[%evp 18,52,18,24,20,20,8,24,22,0,25,-41,-40,-75,-80,-112,-132,-147,-106,-113,-116,-133,-116,-245,-249,-221,-214,-201,-214,-365,-267,-369,-370,-368,-359,-407,-402]} 1. d4 {[%emt 0:00:23]} Nf6 {[%emt 0:00:07]} 2. Nf3 {[%emt 0:00:18]} c5 {[%emt 0:00:56]} 3. e3 {[%emt 0:00:21]} e6 {[%emt 0:00:29]} 4. Nbd2 {[%emt 0:00:11]} d5 {[%emt 0:00:35]} 5. b3 {[%emt 0:00:20]} Nc6 {[%emt 0:00:59]} 6. Bb2 {[%emt 0:00:10]} Bd6 {[%emt 0:01:44]} 7. Bd3 {[%emt 0:00:14]} cxd4 {[%emt 0:00:51]} 8. exd4 {[%emt 0:00:08]} O-O {[%emt 0:00:32]} 9. O-O {[%emt 0:00:01]} Qc7 {[%emt 0:02:35]} 10. a3 {[%emt 0:00:15]} b6 {[%emt 0:03:44]} 11. Re1 {[%emt 0:01:57]} Bb7 {[%emt 0:01:23]} 12. Ne5 {[%emt 0:01:53]} Rac8 {[%emt 0:00:39] White has an edge.} 13. Qf3 {[%emt 0:00:51]} Ne7 {[%emt 0:00:10][%cal Of6e4]} 14. h4 {[%emt 0:03:10] [#]} (14. Rac1 $11) 14... Ne4 $1 $15 {[%emt 0:00:51]} 15. Rad1 {[%emt 0:06:44]} (15. Nxe4 dxe4) 15... f6 {[%emt 0:05:38]} 16. Nec4 {[%emt 0:03:48]} Bh2+ {[%emt 0:02:28]} ({Don't play} 16... dxc4 $6 17. Bxe4 Nd5 18. bxc4 $14 (18. Nxc4 Bh2+ 19. Kh1 f5 $11)) 17. Kh1 {[%emt 0:04:50][%cal Rd2e4]} f5 {[%emt 0:03:51] Black is more active.} ({Worse is} 17... dxc4 18. Bxe4 Nd5 (18... Bxe4 $2 19. Qxe4 c3 20. Qxe6+ Kh8 21. Bxc3 $18) 19. bxc4 $16) 18. Ne5 {[%emt 0:03:06]} Bxe5 {[%emt 0:00:41]} 19. dxe5 {[%emt 0:00:01]} Ng6 $36 {[%emt 0:00:18][%csl LRe5,LRh4][%mdl 2048] Black has strong initiative.} 20. h5 {[%emt 0:03:17] This move loses the game for White.} (20. Kg1 $17 {was worth a try.}) 20... Nxe5 $19 {[%emt 0:01:09]} 21. Bxe5 {[%emt 0:02:26]} Qxe5 {[%emt 0:00:04]} 22. Kg1 {[%emt 0:01:55]} Qf6 {[%emt 0:04:48] White must now prevent ...Nc3.} 23. Qh3 $2 {[%emt 0:02:58] [#]} (23. Qe3) 23... e5 {[%emt 0:02:07] And now ...Ng5 would win.} 24. c4 {[%emt 0:01:06]} Nc3 {[%emt 0:00:32] Black is winning.} 25. Rc1 {[%emt 0:01:48]} e4 {[%emt 0:00:16]} 26. Bf1 {[%emt 0:00:17]} d4 {[%emt 0:00:05] Weighted Error Value: White=0.41/Black=0.15 (very precise) .  Mistake:       	White=3     	---        Inaccurate:     	White=3     	---        OK:         	White=4     	Black=7      Best:        	White=1     	Black=3      Brilliant:      	---       	Black=1} 0-1